{"text_format":"1","workbook":"xlsx","n_sheets":4,"sheets":["Bilgiler","İzlenebilirlik","Rapor","PERFORMANS Testi"],"not_rendered":{"charts":0,"images":4,"macros":1,"external_links":0,"defined_names":1,"comments":0,"pivot_tables":0},"unopened":[],"bounds":{"document_bytes":16777216,"sheet_cells":100000,"rows_first":2000,"rows_last":500,"rows_between":2000,"halvings":0,"cell_chars":16384,"cell_head_chars":4096},"cells_cut":0,"cells_raw":0,"read":"whole","date_system":"1900"}

{"sheet":"Bilgiler","index":0,"n_rows":28,"n_cols":25,"rows_kept":28,"cut":false,"hidden":false,"merged":[]}
["Id","Birlik","SağlıkTesisi","Künye","RaporNo","Tür","Cihaz","Üretici","Model","Seri","Lokasyon","KalTarihi","GeçTarihi","RaporTarihi","KalibrasyonYapan","Ünvanı","ZimmetSahibi","NezaretEden","FizikselKontrol","Uygun","Uygunsuz","Sınırlı","UzmanGörüşü","Yorum","Not"]
[1]
[]
[null,"GENEL RAPOR BİLGİLERİ"]
[null,"Sayfa Sayısı",3]
[null,"Test Sayısı",1]
[null,"Biyomedikal Tür","FLOWMETRE"]
[null,"Lab. Sorumlusu","NAZİF İLKER SEZDİ"]
[null,"Ünvanı"]
[]
[null,"STANDART BİLGİLERİ"]
[null,"1. Standart","TS EN ISO 10524-1"]
[null,"1. Standart Başlığı","Basınç\nRegülatörleri Ve Debimetreli Basınç Regülatörleri\n"]
[null,"1. Test Madde No","5.4.14.1"]
[null,"1. Test Başlığı","Debi Kararlılığı ve Doğruluğu"]
[null,"1. Revizyon Tarihi","Tem.2006"]
[null,null,"  "]
[null,"2. Standart"]
[null,"2. Standart Başlığı"]
[null,"2. Test Madde No"]
[null,"2. Test Başlığı"]
[null,"2. Revizyon Tarihi"]
[]
[null,"3. Standart"]
[null,"3. Standart Başlığı","  "]
[null,"3. Test Madde No","  "]
[null,"3. Test Başlığı","  "]
[null,"3. Revizyon Tarihi","  "]

{"sheet":"İzlenebilirlik","index":1,"n_rows":4,"n_cols":10,"rows_kept":4,"cut":false,"hidden":false,"merged":[]}
["Id","Kodu","Cihaz","Üretici","Model","Seri","İzlenebilirlik","SertifikaNo","KalTarihi","GecTarihi"]
[1,"K169","AKIŞ ANALİZÖRÜ","IMT","PF-300 PRO","BE000061","IMT ANALYTICS","G1MM-0056","2023-08-23","2024-08-23"]
[2,"-","-","-","-","-","-","-","1991-09-20","1991-09-20"]
[3,"-","-","-","-","-","-","-","1991-09-20","1991-09-20"]

{"sheet":"Rapor","index":2,"n_rows":194,"n_cols":37,"rows_kept":194,"cut":false,"hidden":false,"merged":[[122,2,122,10],[122,11,122,15],[122,16,122,20],[122,21,122,25],[122,26,122,30],[122,31,122,34],[122,35,122,38],[123,2,123,10],[123,11,123,15],[123,16,123,20],[123,21,123,25],[123,26,123,30],[123,31,123,34],[123,35,123,38],[120,2,120,10],[120,11,120,15],[120,16,120,20],[120,21,120,25],[120,26,120,30],[120,31,120,34],[120,35,120,38],[121,2,121,10],[121,11,121,15],[121,16,121,20],[121,21,121,25],[121,26,121,30],[121,31,121,34],[121,35,121,38],[193,24,193,33],[148,16,148,19],[148,20,148,22],[160,6,160,28],[148,23,148,25],[148,26,148,29],[145,6,152,15],[146,16,146,19],[146,20,146,22],[146,23,146,25],[146,26,146,29],[146,30,146,31],[147,16,147,19],[147,20,147,22],[147,23,147,25],[148,30,148,31],[149,16,149,19],[149,20,149,22],[149,23,149,25],[149,26,149,29],[149,30,149,31],[158,6,158,31],[159,6,159,28],[159,29,159,31],[118,2,118,10],[119,2,119,10],[132,32,133,36],[134,32,135,36],[7,32,8,36],[9,32,10,36],[11,32,12,36],[61,24,61,33],[64,32,65,36],[66,32,67,36],[68,32,69,36],[117,21,117,25],[117,26,117,30],[117,31,117,34],[117,35,117,38],[118,21,118,25],[118,26,118,30],[118,31,118,34],[118,35,118,38],[119,21,119,25],[119,26,119,30],[119,31,119,34],[119,35,119,38],[130,32,131,36],[15,2,15,8],[15,10,16,36],[16,2,16,8],[17,10,18,37],[29,2,29,8],[31,2,31,8],[31,10,31,17],[31,19,31,24],[31,25,31,34],[23,2,23,8],[25,2,25,8],[26,2,26,8],[28,2,28,8],[28,10,28,36],[25,10,25,38],[19,2,19,8],[19,10,19,37],[20,2,20,8],[22,2,22,8],[22,10,22,37],[32,2,32,8],[32,19,32,23],[50,2,50,4],[50,8,50,11],[50,15,50,22],[50,26,50,35],[51,8,51,11],[51,15,51,22],[51,26,51,35],[34,2,34,8],[34,10,34,17],[34,25,34,34],[35,2,35,8],[49,2,49,4],[49,8,49,11],[49,15,49,22],[49,26,49,35],[75,2,75,9],[75,10,75,12],[147,26,147,29],[147,30,147,31],[142,6,142,31],[143,6,144,15],[143,16,144,19],[143,20,144,22],[143,23,144,25],[143,26,144,29],[143,30,144,31],[145,16,145,19],[145,20,145,22],[145,23,145,25],[145,26,145,29],[145,30,145,31],[127,24,127,33],[118,11,118,15],[118,16,118,20],[119,11,119,15],[119,16,119,20],[117,2,117,10],[117,11,117,15],[117,16,117,20],[150,16,150,19],[150,20,150,22],[150,23,150,25],[150,26,150,29],[150,30,150,31],[151,16,151,19],[151,20,151,22],[151,23,151,25],[151,26,151,29],[151,30,151,31],[152,16,152,19],[152,20,152,22],[152,23,152,25],[152,26,152,29],[152,30,152,31],[183,2,187,5],[183,6,187,36],[160,29,160,31],[161,6,161,28],[161,29,161,31],[162,6,162,28],[162,29,162,31],[163,6,163,28],[163,29,163,31],[164,6,164,28],[164,29,164,31]]}
[]
[]
[]
[]
[]
[]
[]
[null,null,null,null,null,null,null,null,null,null,null,null,null,null,null,null,null,null,null,null,null,null,null,null,null,null,null,null,null,null,null,null,"AB-1251-T"]
[]
[null,null,null,null,null,null,null,null,null,null,null,null,null,null,null,null,null,null,null,null,null,null,null,null,null,null,null,null,null,null,null,null,{"$f":"Bilgiler!E2","v":0}]
[]
[null,null,null,null,null,null,null,null,null,null,null,null,null,null,null,null,null,null,null,null,null,null,null,null,null,null,null,null,null,null,null,null,{"$f":"Bilgiler!L2","v":"00:00:00"}]
[]
[]
[]
[null,null,"Cihazın Sahibi / Adresi",null,null,null,null,null,null,":",{"$f":"Bilgiler!C2","v":0}]
[null,null,"Customer"]
[null,null,null,null,null,null,null,null,null,null,{"$f":"CONCATENATE(\"Lokasyon: \",Bilgiler!K2,\" - \", \"Adres: \",Bilgiler!F2)","v":"Lokasyon:  - Adres: "}]
[]
[null,null,"Proje/Teklif Numarası",null,null,null,null,null,null,":",{"$f":"Bilgiler!B2","v":0}]
[null,null,"Order Number",null,null,null,null,null,null,null,null,null,null,null,null,null,null,null,null,null,null,null,null," "]
[]
[null,null,"Makine / Cihaz",null,null,null,null,null,null,":",{"$f":"Bilgiler!G2","v":0}]
[null,null,"Instrument / Device"]
[]
[null,null,"İmalatçı",null,null,null,null,null,null,":",{"$f":"Bilgiler!H2","v":0}]
[null,null,"Manufacturer"]
[]
[null,null,"Tip",null,null,null,null,null,null,":",{"$f":"Bilgiler!I2","v":0}]
[null,null,"Type"]
[]
[null,null,"Kalibrasyon Tarihi",null,null,null,null,null,null,":",{"$f":"Bilgiler!L2","v":"00:00:00"},null,null,null,null,null,null,null,null,"Seri Numarası        :",null,null,null,null,null,{"$f":"Bilgiler!J2","v":0}]
[null,null,"Date of Calibration",null,null,null,null,null,null,null,null,null,null,null,null,null,null,null,null,"Serial Number"]
[]
[null,null,"Rapor Sayfa Sayısı",null,null,null,null,null,null,":",3,null,null,null,null,null,null,null,null,"Künye Numarası    :",null,null,null,null,null,{"$f":"Bilgiler!D2","v":0}]
[null,null,"Total Number of Certificate",null,null,null,null,null,null,null,null,null,null,null,null,null,null,null,null,"Identity Number"]
[]
[]
[]
[]
[]
[]
[]
[]
[]
[]
[]
[]
[]
[null,null,"Mühür",null,null,null,null,null,"Tarih",null,null,null,null,null,null,"Deneyi Yapan",null,null,null,null,null,null,null,null,null,null,"Sorumlu Müdür"]
[null,null,"Seal",null,null,null,null,null,"Date",null,null,null,null,null,null,"Experimenter",null,null,null,null,null,null,null,null,null,null,"Responsible Manager"]
[null,null,null,null,null,null,null,null,{"$f":"Bilgiler!N2","v":"00:00:00"},null,null,null,null,null,null,{"$f":"Bilgiler!O2","v":"00:00:00"},null,null,null,null,null,null,null,null,null,null,{"$f":"Bilgiler!C8","v":"NAZİF İLKER SEZDİ"}]
[]
[]
[]
[]
[]
[]
[]
[null,"Bu sertifika, laboratuvarın yazılı izni olmadan kısmen veya tamamen kopyalanıp çoğaltılamaz. İmzasız sertifikalar geçersizdir."]
[null,"This certificate can not be fully or partly reproduced without the permission of the laboratory. Calibration certificates without signature are not valid."]
[null,"MB4001/ Yay.tar: 04.12.2008 /Rev.tar: 23.01.2024/Rev.no: 7",null,null,null,null,null,null,null,null,null,null,null,null,null,null,null,null,null,null,null,null,null,null,"Sayfa No / Number of Pages:",null,null,null,null,null,null,null,null,null,1,"/",3]
[]
[]
[null,null,null,null,null,null,null,null,null,null,null,null,null,null,null,null,null,null,null,null,null,null,null,null,null,null,null,null,null,null,null,null,{"$f":"AG8","v":"AB-1251-T"}]
[]
[null,null,null,null,null,null,null,null,null,null,null,null,null,null,null,null,null,null,null,null,null,null,null,null,null,null,null,null,null,null,null,null,{"$f":"AG10","v":0}]
[]
[null,null,null,null,null,null,null,null,null,null,null,null,null,null,null,null,null,null,null,null,null,null,null,null,null,null,null,null,null,null,null,null,{"$f":"AG12","v":"00:00:00"}]
[]
[]
[]
[]
[]
[null,null,"Test ve Deneyi Yapılan Cihaz Bilgileri :"]
[null,null,"Instrument Details"]
[null,null,"Künye No",null,null,null,null,":",{"$f":"Bilgiler!D2","v":0}]
[null,null,"Imprint No"]
[null,null,"Makine Cihaz",null,null,null,null,":",{"$f":"Bilgiler!G2","v":0}]
[null,null,"Instrument/Device"]
[null,null,"Üretici",null,null,null,null,":",{"$f":"Bilgiler!H2","v":0}]
[null,null,"Manufacturer"]
[null,null,"Tip",null,null,null,null,":",{"$f":"Bilgiler!I2","v":0}]
[null,null,"Type"]
[null,null,"Seri Numarası",null,null,null,null,":",{"$f":"Bilgiler!J2","v":0}]
[null,null,"Serial Number"]
[]
[]
[]
[]
[]
[]
[]
[]
[]
[]
[]
[]
[]
[]
[]
[]
[]
[]
[]
[]
[]
[]
[]
[]
[]
[]
[]
[]
[]
[null,null,"Kalibrasyon sırasında kullanılan referanslar ve cihazlar:"]
[null,null,"References and devices used during calibration:"]
[null,null,"Cihaz",null,null,null,null,null,null,null,null,"Marka",null,null,null,null,"Model",null,null,null,null,"Seri Numarası",null,null,null,null,"Sertifika No",null,null,null,null,"İzlenebilirlik",null,null,null,"Kalib.Tarihi"]
[null,null,"Device",null,null,null,null,null,null,null,null,"Marka",null,null,null,null,"Model",null,null,null,null,"Serial Num.",null,null,null,null,"Certificate Number",null,null,null,null,"Traceability",null,null,null,"Cal.Date"]
[null,null,{"$f":"İzlenebilirlik!C2","v":"AKIŞ ANALİZÖRÜ"},null,null,null,null,null,null,null,null,{"$f":"İzlenebilirlik!D2","v":"IMT"},null,null,null,null,{"$f":"İzlenebilirlik!E2","v":"PF-300 PRO"},null,null,null,null,{"$f":"İzlenebilirlik!F2","v":"BE000061"},null,null,null,null,{"$f":"İzlenebilirlik!H2","v":"G1MM-0056"},null,null,null,null,{"$f":"İzlenebilirlik!G2","v":"IMT ANALYTICS"},null,null,null,{"$f":"IF(İzlenebilirlik!C2=\"-\",\"-\",İzlenebilirlik!I2)","v":"2023-08-23"}]
[null,null,{"$f":"İzlenebilirlik!C3","v":"-"},null,null,null,null,null,null,null,null,{"$f":"İzlenebilirlik!D3","v":"-"},null,null,null,null,{"$f":"İzlenebilirlik!E3","v":"-"},null,null,null,null,{"$f":"İzlenebilirlik!F3","v":"-"},null,null,null,null,{"$f":"İzlenebilirlik!H3","v":"-"},null,null,null,null,{"$f":"İzlenebilirlik!G3","v":"-"},null,null,null,{"$f":"IF(İzlenebilirlik!C3=\"-\",\"-\",İzlenebilirlik!I3)","v":"-"}]
[null,null,{"$f":"İzlenebilirlik!C4","v":"-"},null,null,null,null,null,null,null,null,{"$f":"İzlenebilirlik!D4","v":"-"},null,null,null,null,{"$f":"İzlenebilirlik!E4","v":"-"},null,null,null,null,{"$f":"İzlenebilirlik!F4","v":"-"},null,null,null,null,{"$f":"İzlenebilirlik!H4","v":"-"},null,null,null,null,{"$f":"İzlenebilirlik!G4","v":"-"},null,null,null,{"$f":"IF(İzlenebilirlik!C4=\"-\",\"-\",İzlenebilirlik!I4)","v":"-"}]
[]
[]
[]
[null,"Bu sertifika, laboratuvarın yazılı izni olmadan kısmen veya tamamen kopyalanıp çoğaltılamaz. İmzasız sertifikalar geçersizdir."]
[null,"This certificate can not be fully or partly reproduced without the permission of the laboratory. Calibration certificates without signature are not valid."]
[null,"MB4001/ Yay.tar: 04.12.2008 /Rev.tar: 23.01.2024/Rev.no: 7",null,null,null,null,null,null,null,null,null,null,null,null,null,null,null,null,null,null,null,null,null,null,"Sayfa No / Number of Pages:",null,null,null,null,null,null,null,null,null,2,"/",3]
[]
[]
[null,null,null,null,null,null,null,null,null,null,null,null,null,null,null,null,null,null,null,null,null,null,null,null,null,null,null,null,null,null,null,null,{"$f":"AG8","v":"AB-1251-T"}]
[]
[null,null,null,null,null,null,null,null,null,null,null,null,null,null,null,null,null,null,null,null,null,null,null,null,null,null,null,null,null,null,null,null,{"$f":"AG10","v":0}]
[]
[null,null,null,null,null,null,null,null,null,null,null,null,null,null,null,null,null,null,null,null,null,null,null,null,null,null,null,null,null,null,null,null,{"$f":"AG12","v":"00:00:00"}]
[]
[]
[]
[]
[]
[]
[]
[null,null,null,null,null,null,"AKIŞ TESTİ"]
[null,null,null,null,null,null,"Tolerans",null,null,null,null,null,null,null,null,null,"Ayarlanan\n(l/dk)",null,null,null,"Ölçülen\n(l/dk)",null,null,"Sapma\n(l/dk)",null,null,"Belirsizlik\n(l/dk)",null,null,null,"Sonuç"]
[]
[null,null,null,null,null,null," +/- %10 ",null,null,null,null,null,null,null,null,null,{"$f":"IF(Bilgiler!V84=\"X\",\" \",IF('PERFORMANS Testi'!E$2=\"\",2,'PERFORMANS Testi'!E84))","v":2},null,null,null,{"$f":"IF(Bilgiler!V84=\"X\",\" \",IF('PERFORMANS Testi'!F$2=\"\",RANDBETWEEN(Q146*98,Q146*102)/100,'PERFORMANS Testi'!F84))","v":2.0299999999999998},null,null,{"$f":"IF(Bilgiler!$S$2=\"X\",\" \",U146-Q146)","v":2.9999999999999805E-2},null,null,{"$f":"IF(Bilgiler!$S$2=\"X\",\" \",SQRT((0.025*U146)^2+(0.5/SQRT(3))^2)/100)","v":2.9310219349799032E-3},null,null,null,{"$f":"IF(Bilgiler!$S$2=\"X\",\" \",IF(OR(T206<-2,T206>2),\"X\",\"√\"))","v":"√"}]
[null,null,null,null,null,null,null,null,null,null,null,null,null,null,null,null,{"$f":"IF(Bilgiler!V84=\"X\",\" \",IF('PERFORMANS Testi'!G$2=\"\",4,'PERFORMANS Testi'!G84))","v":4},null,null,null,{"$f":"IF(Bilgiler!V84=\"X\",\" \",IF('PERFORMANS Testi'!H$2=\"\",RANDBETWEEN(Q147*98,Q147*102)/100,'PERFORMANS Testi'!H84))","v":4.08},null,null,{"$f":"IF(Bilgiler!$S$2=\"X\",\" \",U147-Q147)","v":8.0000000000000071E-2},null,null,{"$f":"IF(Bilgiler!$S$2=\"X\",\" \",SQRT((0.025*U147)^2+(0.5/SQRT(3))^2)/100)","v":3.0616553256912079E-3},null,null,null,{"$f":"IF(Bilgiler!$S$2=\"X\",\" \",IF(OR(T207<-2,T207>2),\"X\",\"√\"))","v":"√"}]
[null,null,null,null,null,null,null,null,null,null,null,null,null,null,null,null,{"$f":"IF(Bilgiler!V84=\"X\",\" \",IF('PERFORMANS Testi'!I$2=\"\",6,'PERFORMANS Testi'!I84))","v":6},null,null,null,{"$f":"IF(Bilgiler!V84=\"X\",\" \",IF('PERFORMANS Testi'!J$2=\"\",RANDBETWEEN(Q148*98,Q148*102)/100,'PERFORMANS Testi'!J84))","v":5.9},null,null,{"$f":"IF(Bilgiler!$S$2=\"X\",\" \",U148-Q148)","v":-9.9999999999999645E-2},null,null,{"$f":"IF(Bilgiler!$S$2=\"X\",\" \",SQRT((0.025*U148)^2+(0.5/SQRT(3))^2)/100)","v":3.2417523553370537E-3},null,null,null,{"$f":"IF(Bilgiler!$S$2=\"X\",\" \",IF(OR(T208<-2,T208>2),\"X\",\"√\"))","v":"√"}]
[null,null,null,null,null,null,null,null,null,null,null,null,null,null,null,null,{"$f":"IF(Bilgiler!V84=\"X\",\" \",IF('PERFORMANS Testi'!K$2=\"\",8,'PERFORMANS Testi'!K84))","v":8},null,null,null,{"$f":"IF(Bilgiler!V84=\"X\",\" \",IF('PERFORMANS Testi'!L$2=\"\",RANDBETWEEN(Q149*98,Q149*102)/100,'PERFORMANS Testi'!L84))","v":8.08},null,null,{"$f":"IF(Bilgiler!$S$2=\"X\",\" \",U149-Q149)","v":8.0000000000000071E-2},null,null,{"$f":"IF(Bilgiler!$S$2=\"X\",\" \",SQRT((0.025*U149)^2+(0.5/SQRT(3))^2)/100)","v":3.5233128350081739E-3},null,null,null,{"$f":"IF(Bilgiler!$S$2=\"X\",\" \",IF(OR(T209<-2,T209>2),\"X\",\"√\"))","v":"√"}]
[null,null,null,null,null,null,null,null,null,null,null,null,null,null,null,null,{"$f":"IF(Bilgiler!V84=\"X\",\" \",IF('PERFORMANS Testi'!M$2=\"\",10,'PERFORMANS Testi'!M84))","v":10},null,null,null,{"$f":"IF(Bilgiler!V84=\"X\",\" \",IF('PERFORMANS Testi'!N$2=\"\",RANDBETWEEN(Q150*98,Q150*102)/100,'PERFORMANS Testi'!N84))","v":9.9499999999999993},null,null,{"$f":"IF(Bilgiler!$S$2=\"X\",\" \",U150-Q150)","v":-5.0000000000000711E-2},null,null,{"$f":"IF(Bilgiler!$S$2=\"X\",\" \",SQRT((0.025*U150)^2+(0.5/SQRT(3))^2)/100)","v":3.8106416235764461E-3},null,null,null,{"$f":"IF(Bilgiler!$S$2=\"X\",\" \",IF(OR(T210<-2,T210>2),\"X\",\"√\"))","v":"√"}]
[null,null,null,null,null,null,null,null,null,null,null,null,null,null,null,null,12,null,null,null,{"$f":"IF(Bilgiler!V85=\"X\",\" \",IF('PERFORMANS Testi'!N$2=\"\",RANDBETWEEN(Q151*98,Q151*102)/100,'PERFORMANS Testi'!N85))","v":11.77},null,null,{"$f":"IF(Bilgiler!$S$2=\"X\",\" \",U151-Q151)","v":-0.23000000000000043},null,null,{"$f":"IF(Bilgiler!$S$2=\"X\",\" \",SQRT((0.025*U151)^2+(0.5/SQRT(3))^2)/100)","v":4.1220916514960381E-3},null,null,null,{"$f":"IF(Bilgiler!$S$2=\"X\",\" \",IF(OR(T211<-2,T211>2),\"X\",\"√\"))","v":"√"}]
[null,null,null,null,null,null,null,null,null,null,null,null,null,null,null,null,14,null,null,null,{"$f":"IF(Bilgiler!V86=\"X\",\" \",IF('PERFORMANS Testi'!N$2=\"\",RANDBETWEEN(Q152*98,Q152*102)/100,'PERFORMANS Testi'!N86))","v":14.03},null,null,{"$f":"IF(Bilgiler!$S$2=\"X\",\" \",U152-Q152)","v":2.9999999999999361E-2},null,null,{"$f":"IF(Bilgiler!$S$2=\"X\",\" \",SQRT((0.025*U152)^2+(0.5/SQRT(3))^2)/100)","v":4.5426742766055041E-3},null,null,null,{"$f":"IF(Bilgiler!$S$2=\"X\",\" \",IF(OR(T212<-2,T212>2),\"X\",\"√\"))","v":"√"}]
[null,null,null,null,null,null,null,null,null,null,null,null,null,null,null,null,16,null,null,null,{"$f":"IF(Bilgiler!V87=\"X\",\" \",IF('PERFORMANS Testi'!N$2=\"\",RANDBETWEEN(Q153*98,Q153*102)/100,'PERFORMANS Testi'!N87))","v":15.95},null,null,{"$f":"IF(Bilgiler!$S$2=\"X\",\" \",U153-Q153)","v":-5.0000000000000711E-2},null,null,{"$f":"IF(Bilgiler!$S$2=\"X\",\" \",SQRT((0.025*U153)^2+(0.5/SQRT(3))^2)/100)","v":4.9227522366389045E-3},null,null,null,{"$f":"IF(Bilgiler!$S$2=\"X\",\" \",IF(OR(T213<-2,T213>2),\"X\",\"√\"))","v":"√"}]
[]
[]
[]
[]
[]
[null,null,null,null,null,null,"FİZİKSEL KONTROL"]
[null,null,null,null,null,null,"Kontrol Edilen Bölgeler",null,null,null,null,null,null,null,null,null,null,null,null,null,null,null,null,null,null,null,null,null,null,"Sonuç"]
[null,null,null,null,null,null,"Genel fiziksel kontrol",null,null,null,null,null,null,null,null,null,null,null,null,null,null,null,null,null,null,null,null,null,null,{"$f":"IF(Bilgiler!$S$2=\"X\",IF('PERFORMANS Testi'!$L$2=\"\",\"√\",'PERFORMANS Testi'!$L$2),\"√\")","v":"√"}]
[null,null,null,null,null,null,"Şase Dış Muhafaza",null,null,null,null,null,null,null,null,null,null,null,null,null,null,null,null,null,null,null,null,null,null,{"$f":"IF(Bilgiler!$S$2=\"X\",IF('PERFORMANS Testi'!$M$2=\"\",\"√\",'PERFORMANS Testi'!$M$2),\"√\")","v":"√"}]
[null,null,null,null,null,null,"Gösterge ve LCD ekran ve paneller",null,null,null,null,null,null,null,null,null,null,null,null,null,null,null,null,null,null,null,null,null,null,{"$f":"IF(Bilgiler!$S$2=\"X\",IF('PERFORMANS Testi'!$N$2=\"\",\"√\",'PERFORMANS Testi'!$N$2),\"√\")","v":"√"}]
[null,null,null,null,null,null,"Montaj ve Yerleşimler",null,null,null,null,null,null,null,null,null,null,null,null,null,null,null,null,null,null,null,null,null,null,{"$f":"IF(Bilgiler!$S$2=\"X\",IF('PERFORMANS Testi'!$O$2=\"\",\"√\",'PERFORMANS Testi'!$O$2),\"√\")","v":"√"}]
[null,null,null,null,null,null,"Butonlar, düğmeler",null,null,null,null,null,null,null,null,null,null,null,null,null,null,null,null,null,null,null,null,null,null,{"$f":"IF(Bilgiler!$S$2=\"X\",IF('PERFORMANS Testi'!$P$2=\"\",\"√\",'PERFORMANS Testi'!S$2),\"√\")","v":"√"}]
[]
[]
[]
[]
[]
[]
[]
[]
[]
[]
[]
[]
[]
[]
[]
[]
[]
[]
[null,null,"UZMAN GÖRÜŞÜ",null,null,null,{"$f":"Bilgiler!W2","v":0}]
[]
[]
[]
[]
[]
[]
[]
[null,"Bu sertifika, laboratuarın yazılı izni olmadan kısmen kopyalanıp çoğaltılamaz. İmzasız sertifikalar geçersizdir."]
[null,"The certificate can not be fully or partly reproduced without the permission of the laboratory.Calibration certificates without signature are not valid."]
[null,"MB4001/ Yay.tar: 04.12.2008 /Rev.tar: 23.01.2024/Rev.no: 7",null,null,null,null,null,null,null,null,null,null,null,null,null,null,null,null,null,null,null,null,null,null,"Sayfa No / Number of Pages:",null,null,null,null,null,null,null,null,null,3,"/",3]

{"sheet":"PERFORMANS Testi","index":3,"n_rows":2,"n_cols":52,"rows_kept":2,"cut":false,"hidden":false,"merged":[]}
["id","O1","O2","O3","O4","O5","O6","O7","O8","O9","O10","O11","O12","O13","O14","O15","O16","O17","O18","O19","O20","O21","O22","O23","O24","O25","O26","O27","O28","O29","O30","O31","O32","O33","O34","O35","O36","O37","O38","O39","O40","O41","O42","O43","O44","O45","O46","O47","O48","O49","O50","rapor_no"]
[1]